[Event "Late-Titled-Tuesday-Blitz-January-16-2024"]
[Site "Chess.com"]
[Date "2024.01.16"]
[Round "3"]
[White "Redzishchess"]
[Black "albi1999"]
[Result "1-0"]
[WhiteElo "2469"]
[BlackElo "2607"]
[TimeControl "180+1"]
[EndTime "14:26:26 PST"]
[Termination "Redzishchess won by resignation"]

1. d4 {[%clk 0:03:00.9]} 1... Nf6 {[%clk 0:02:57.7]} 2. Nc3 {[%clk 0:02:58]}
2... d6 {[%clk 0:02:51.4]} 3. e4 {[%clk 0:02:52.7]} 3... Nc6 {[%clk 0:02:48.4]}
4. Bg5 {[%clk 0:02:51.3]} 4... e5 {[%clk 0:02:44.5]} 5. Nge2 {[%clk 0:02:44.5]}
5... Be7 {[%clk 0:02:43.4]} 6. Bxf6 {[%clk 0:02:34.3]} 6... Bxf6 {[%clk
0:02:44.3]} 7. d5 {[%clk 0:02:33.7]} 7... Ne7 {[%clk 0:02:41.2]} 8. Rg1 {[%clk
0:02:25.4]} 8... h5 {[%clk 0:02:38.1]} 9. Qd3 {[%clk 0:02:12.5]} 9... Bg5 {[%clk
0:02:35.1]} 10. g3 {[%clk 0:02:11.5]} 10... Ng6 {[%clk 0:02:34.9]} 11. h4 {[%clk
0:01:42.5]} 11... Bh6 {[%clk 0:02:34.1]} 12. Nd1 {[%clk 0:01:42.6]} 12... c5
{[%clk 0:02:01.5]} 13. Ne3 {[%clk 0:01:37.4]} 13... O-O {[%clk 0:01:59.6]} 14.
O-O-O {[%clk 0:01:30.9]} 14... Bd7 {[%clk 0:01:42.5]} 15. Kb1 {[%clk 0:01:20]}
15... b5 {[%clk 0:01:38.7]} 16. Nf5 {[%clk 0:01:20.6]} 16... Bxf5 {[%clk
0:01:37.8]} 17. exf5 {[%clk 0:01:21.5]} 17... Ne7 {[%clk 0:01:36.6]} 18. f6
{[%clk 0:01:17.1]} 18... gxf6 {[%clk 0:01:33.7]} 19. g4 {[%clk 0:01:17.7]} 19...
Kh8 {[%clk 0:01:26.5]} 20. g5 {[%clk 0:01:02.7]} 20... fxg5 {[%clk 0:01:21.7]}
21. hxg5 {[%clk 0:01:03.6]} 21... Bg7 {[%clk 0:01:21.2]} 22. Rh1 {[%clk
0:01:00.9]} 22... Ng6 {[%clk 0:01:12.4]} 23. Rxh5+ {[%clk 0:00:56.6]} 23... Kg8
{[%clk 0:01:13]} 24. Ng3 {[%clk 0:00:47.5]} 24... c4 {[%clk 0:01:12.3]} 25. Qe4
{[%clk 0:00:47.2]} 25... Qb6 {[%clk 0:01:05.7]} 26. Nf5 {[%clk 0:00:42.9]} 26...
Rfe8 {[%clk 0:01:04.7]} 27. Bh3 {[%clk 0:00:22.7]} 27... Qxf2 {[%clk 0:00:58.5]}
28. Rf1 {[%clk 0:00:22.3]} 28... Qd2 {[%clk 0:00:54.4]} 29. Nxg7 {[%clk
0:00:13.3]} 29... Kxg7 {[%clk 0:00:53.2]} 30. Rxf7+ {[%clk 0:00:10.3]} 30...
Kxf7 {[%clk 0:00:53.5]} 31. Rh7+ {[%clk 0:00:10.5]} 31... Kf8 {[%clk 0:00:54]}
32. Qf5+ {[%clk 0:00:10.9]} 1-0

[Event "Late-Titled-Tuesday-Blitz-January-16-2024"]
[Site "Chess.com"]
[Date "2024.01.16"]
[Round "3"]
[White "pirulillo"]
[Black "argentum049"]
[Result "0-1"]
[WhiteElo "2269"]
[BlackElo "2500"]
[TimeControl "180+1"]
[EndTime "14:26:27 PST"]
[Termination "argentum049 won on time"]

1. e4 {[%clk 0:03:00.9]} 1... e6 {[%clk 0:02:59.8]} 2. d3 {[%clk 0:02:51.8]}
2... d5 {[%clk 0:02:59.9]} 3. Nd2 {[%clk 0:02:42.9]} 3... Nf6 {[%clk 0:02:59.6]}
4. Ngf3 {[%clk 0:02:41.6]} 4... g6 {[%clk 0:02:55.5]} 5. g3 {[%clk 0:02:37.2]}
5... Bg7 {[%clk 0:02:55.7]} 6. Bg2 {[%clk 0:02:34.6]} 6... O-O {[%clk
0:02:56.3]} 7. O-O {[%clk 0:02:26]} 7... c5 {[%clk 0:02:56.8]} 8. Re1 {[%clk
0:02:23.7]} 8... Nc6 {[%clk 0:02:56.8]} 9. Qe2 {[%clk 0:02:22.6]} 9... a5 {[%clk
0:02:56.8]} 10. a4 {[%clk 0:02:21.3]} 10... b6 {[%clk 0:02:56.8]} 11. exd5
{[%clk 0:02:21]} 11... exd5 {[%clk 0:02:57.7]} 12. c3 {[%clk 0:02:17.7]} 12...
Ba6 {[%clk 0:02:56.7]} 13. Bf1 {[%clk 0:02:00.9]} 13... Re8 {[%clk 0:02:50.7]}
14. Qd1 {[%clk 0:01:51]} 14... Rxe1 {[%clk 0:02:51]} 15. Qxe1 {[%clk 0:01:48.1]}
15... Qd7 {[%clk 0:02:46.2]} 16. Nb3 {[%clk 0:01:43.6]} 16... Re8 {[%clk
0:02:45.1]} 17. Qd1 {[%clk 0:01:44]} 17... Qf5 {[%clk 0:02:43.8]} 18. Bf4 {[%clk
0:01:32.9]} 18... h6 {[%clk 0:02:40.6]} 19. d4 {[%clk 0:01:16.5]} 19... Bxf1
{[%clk 0:02:37.6]} 20. Kxf1 {[%clk 0:01:15.8]} 20... c4 {[%clk 0:02:15.7]} 21.
Nc1 {[%clk 0:01:13.6]} 21... g5 {[%clk 0:02:14.9]} 22. Bd2 {[%clk 0:01:10.1]}
22... Ne4 {[%clk 0:01:55.9]} 23. Be1 {[%clk 0:00:30]} 23... Bf6 {[%clk
0:01:29.9]} 24. Kg2 {[%clk 0:00:19.8]} 24... h5 {[%clk 0:01:05.8]} 25. b3 {[%clk
0:00:13.5]} 25... g4 {[%clk 0:01:00.3]} 26. Ng1 {[%clk 0:00:12.1]} 26... h4
{[%clk 0:00:56.2]} 0-1

[Event "Late-Titled-Tuesday-Blitz-January-16-2024"]
[Site "Chess.com"]
[Date "2024.01.16"]
[Round "3"]
[White "RianKapriaga"]
[Black "TheMagician"]
[Result "1-0"]
[WhiteElo "2380"]
[BlackElo "2152"]
[TimeControl "180+1"]
[EndTime "14:26:30 PST"]
[Termination "RianKapriaga won on time"]

1. d4 {[%clk 0:03:00.9]} 1... Nf6 {[%clk 0:02:59.4]} 2. Nf3 {[%clk 0:03:00.6]}
2... d5 {[%clk 0:02:59.1]} 3. Bf4 {[%clk 0:02:59.7]} 3... Nh5 {[%clk 0:02:57.1]}
4. Bg5 {[%clk 0:02:57.8]} 4... h6 {[%clk 0:02:56.7]} 5. Bh4 {[%clk 0:02:57.7]}
5... g5 {[%clk 0:02:56.4]} 6. Bg3 {[%clk 0:02:57.5]} 6... Nxg3 {[%clk
0:02:55.3]} 7. hxg3 {[%clk 0:02:56.6]} 7... Bg7 {[%clk 0:02:55.3]} 8. e3 {[%clk
0:02:55.5]} 8... Bg4 {[%clk 0:02:53.3]} 9. Be2 {[%clk 0:02:54.4]} 9... Bxf3
{[%clk 0:02:49.4]} 10. Bxf3 {[%clk 0:02:52.8]} 10... c6 {[%clk 0:02:49.6]} 11.
c3 {[%clk 0:02:52.4]} 11... e6 {[%clk 0:02:48.9]} 12. Nd2 {[%clk 0:02:51.7]}
12... Nd7 {[%clk 0:02:43.3]} 13. Qe2 {[%clk 0:02:50.5]} 13... f5 {[%clk
0:02:41.3]} 14. Qd1 {[%clk 0:02:38]} 14... g4 {[%clk 0:02:33]} 15. Be2 {[%clk
0:02:34.8]} 15... h5 {[%clk 0:02:33.2]} 16. Qc2 {[%clk 0:02:32.6]} 16... h4
{[%clk 0:02:13.9]} 17. gxh4 {[%clk 0:02:30.4]} 17... Rxh4 {[%clk 0:02:12.6]} 18.
O-O-O {[%clk 0:02:30.3]} 18... Qf6 {[%clk 0:02:03]} 19. c4 {[%clk 0:02:22]}
19... Rxh1 {[%clk 0:01:55.5]} 20. Rxh1 {[%clk 0:02:20.4]} 20... Ke7 {[%clk
0:01:45.1]} 21. Qa4 {[%clk 0:02:12.7]} 21... c5 {[%clk 0:01:24.2]} 22. Qa3
{[%clk 0:02:01.3]} 22... Kf7 {[%clk 0:01:20.8]} 23. cxd5 {[%clk 0:01:50.9]}
23... exd5 {[%clk 0:00:52.5]} 24. dxc5 {[%clk 0:01:50.7]} 24... Qe7 {[%clk
0:00:33.4]} 25. Nb3 {[%clk 0:01:46]} 25... Rc8 {[%clk 0:00:29.2]} 26. Kb1 {[%clk
0:01:42.5]} 26... Nxc5 {[%clk 0:00:28.2]} 27. Rc1 {[%clk 0:01:34.8]} 27... b6
{[%clk 0:00:25.1]} 28. Nd4 {[%clk 0:01:28.3]} 28... Bxd4 {[%clk 0:00:21.5]} 29.
exd4 {[%clk 0:01:24.7]} 29... Qxe2 {[%clk 0:00:21.4]} 30. dxc5 {[%clk
0:01:24.7]} 30... Rxc5 {[%clk 0:00:15.6]} 31. Qxa7+ {[%clk 0:01:23.8]} 31... Kg8
{[%clk 0:00:13.4]} 32. Rxc5 {[%clk 0:01:07.8]} 1-0

[Event "Late-Titled-Tuesday-Blitz-January-16-2024"]
[Site "Chess.com"]
[Date "2024.01.16"]
[Round "3"]
[White "cassoulet"]
[Black "Nouali_Mohamed"]
[Result "1-0"]
[WhiteElo "2771"]
[BlackElo "2544"]
[TimeControl "180+1"]
[EndTime "14:26:39 PST"]
[Termination "cassoulet won on time"]

1. d4 {[%clk 0:02:58.1]} 1... Nf6 {[%clk 0:02:59.4]} 2. Bg5 {[%clk 0:02:57.2]}
2... Ne4 {[%clk 0:02:56.2]} 3. Bf4 {[%clk 0:02:56.8]} 3... d5 {[%clk 0:02:56.6]}
4. Nd2 {[%clk 0:02:56.7]} 4... Nxd2 {[%clk 0:02:51.7]} 5. Qxd2 {[%clk
0:02:57.6]} 5... Nc6 {[%clk 0:02:45.8]} 6. Nf3 {[%clk 0:02:56.5]} 6... Bg4
{[%clk 0:02:41.2]} 7. e3 {[%clk 0:02:53.1]} 7... e6 {[%clk 0:02:36.7]} 8. Bb5
{[%clk 0:02:51.1]} 8... Bxf3 {[%clk 0:02:34.3]} 9. gxf3 {[%clk 0:02:51]} 9...
Bd6 {[%clk 0:02:34.9]} 10. Qc3 {[%clk 0:02:43]} 10... O-O {[%clk 0:02:30.6]} 11.
Bxc6 {[%clk 0:02:36.4]} 11... bxc6 {[%clk 0:02:31.5]} 12. Bg3 {[%clk 0:02:29.9]}
12... Rb8 {[%clk 0:02:28.3]} 13. a3 {[%clk 0:02:28.7]} 13... Rb5 {[%clk
0:02:13]} 14. b3 {[%clk 0:02:17.6]} 14... c5 {[%clk 0:02:03.6]} 15. Qd3 {[%clk
0:02:06.6]} 15... Rb8 {[%clk 0:01:49.3]} 16. dxc5 {[%clk 0:02:04.2]} 16... Bxc5
{[%clk 0:01:50.1]} 17. O-O {[%clk 0:02:02.1]} 17... a5 {[%clk 0:01:43.9]} 18.
Qc3 {[%clk 0:01:59.6]} 18... Bb6 {[%clk 0:01:42.6]} 19. Kh1 {[%clk 0:01:59]}
19... Qg5 {[%clk 0:01:13]} 20. Rg1 {[%clk 0:01:53]} 20... d4 {[%clk 0:00:46]}
21. exd4 {[%clk 0:01:44.1]} 21... Qf5 {[%clk 0:00:43.2]} 22. d5 {[%clk
0:01:34.2]} 22... g6 {[%clk 0:00:36.9]} 23. dxe6 {[%clk 0:01:27.5]} 23... fxe6
{[%clk 0:00:37.3]} 24. Kg2 {[%clk 0:01:22.3]} 24... Rbd8 {[%clk 0:00:16.2]} 25.
Rad1 {[%clk 0:01:21.6]} 25... Rd5 {[%clk 0:00:16.1]} 26. Rge1 {[%clk 0:01:17.4]}
26... Rfd8 {[%clk 0:00:14.5]} 27. Rxd5 {[%clk 0:01:17]} 27... Rxd5 {[%clk
0:00:12.8]} 28. Re4 {[%clk 0:01:05.2]} 28... Rc5 {[%clk 0:00:09.9]} 29. Qd3
{[%clk 0:00:54.8]} 29... Rd5 {[%clk 0:00:07.3]} 30. Qe2 {[%clk 0:00:53.8]} 30...
Kf7 {[%clk 0:00:06.6]} 31. Rf4 {[%clk 0:00:54]} 1-0

[Event "Late-Titled-Tuesday-Blitz-January-16-2024"]
[Site "Chess.com"]
[Date "2024.01.16"]
[Round "3"]
[White "eCztery"]
[Black "JaackCamel"]
[Result "1-0"]
[WhiteElo "2429"]
[BlackElo "2158"]
[TimeControl "180+1"]
[EndTime "14:26:40 PST"]
[Termination "eCztery won by resignation"]

1. e4 {[%clk 0:02:08.3]} 1... e6 {[%clk 0:02:59.6]} 2. d4 {[%clk 0:02:07]} 2...
d5 {[%clk 0:02:59.5]} 3. exd5 {[%clk 0:02:07.9]} 3... exd5 {[%clk 0:02:59.2]} 4.
Nf3 {[%clk 0:02:08.6]} 4... Nf6 {[%clk 0:02:59.2]} 5. Bd3 {[%clk 0:02:08.5]}
5... Bd6 {[%clk 0:02:59.2]} 6. O-O {[%clk 0:02:09]} 6... O-O {[%clk 0:02:59]} 7.
h3 {[%clk 0:02:07.8]} 7... h6 {[%clk 0:02:57.8]} 8. c4 {[%clk 0:02:07.7]} 8...
dxc4 {[%clk 0:02:56.4]} 9. Bxc4 {[%clk 0:02:08.6]} 9... Nbd7 {[%clk 0:02:56.2]}
10. Nbd2 {[%clk 0:02:05.7]} 10... Nb6 {[%clk 0:02:56.1]} 11. Bb3 {[%clk
0:02:04.5]} 11... c6 {[%clk 0:02:56.3]} 12. Re1 {[%clk 0:02:04.2]} 12... Bf5
{[%clk 0:02:56]} 13. Ne5 {[%clk 0:01:58.3]} 13... Qc7 {[%clk 0:02:54.9]} 14.
Ndf3 {[%clk 0:01:57.1]} 14... Rad8 {[%clk 0:02:52.9]} 15. Bf4 {[%clk 0:01:52.1]}
15... Be4 {[%clk 0:02:50]} 16. Qe2 {[%clk 0:01:31.4]} 16... Bf5 {[%clk
0:02:45.4]} 17. Rad1 {[%clk 0:01:24.5]} 17... Nbd5 {[%clk 0:02:44.8]} 18. Bh2
{[%clk 0:01:03.8]} 18... Be4 {[%clk 0:02:43.2]} 19. Nh4 {[%clk 0:00:58.4]} 19...
Bh7 {[%clk 0:02:35]} 20. Qf3 {[%clk 0:00:56]} 20... Qc8 {[%clk 0:02:24.4]} 21.
Nc4 {[%clk 0:00:50.1]} 21... Bxh2+ {[%clk 0:02:23.3]} 22. Kxh2 {[%clk 0:00:51]}
22... Rfe8 {[%clk 0:02:17.9]} 23. Ne3 {[%clk 0:00:47.3]} 23... Qc7+ {[%clk
0:02:08.1]} 24. g3 {[%clk 0:00:44.1]} 24... Be4 {[%clk 0:01:58.8]} 25. Nxd5
{[%clk 0:00:34.4]} 25... Bxd5 {[%clk 0:01:54.4]} 26. Bxd5 {[%clk 0:00:32.1]}
26... Nxd5 {[%clk 0:01:54]} 27. Nf5 {[%clk 0:00:31.6]} 27... Qd7 {[%clk
0:01:48.6]} 28. Qg4 {[%clk 0:00:30.5]} 28... f6 {[%clk 0:01:13.3]} 29. Rxe8+
{[%clk 0:00:26.5]} 29... Rxe8 {[%clk 0:01:00]} 30. Nxh6+ {[%clk 0:00:26.5]}
30... Kh7 {[%clk 0:00:56.6]} 31. Qxd7 {[%clk 0:00:27.4]} 31... Re7 {[%clk
0:00:56.6]} 32. Qf5+ {[%clk 0:00:24.4]} 32... g6 {[%clk 0:00:56.3]} 33. Qf3
{[%clk 0:00:21.3]} 33... Kxh6 {[%clk 0:00:56.2]} 34. Rd2 {[%clk 0:00:19.7]}
34... Kg7 {[%clk 0:00:56.2]} 35. Re2 {[%clk 0:00:20.1]} 35... Rd7 {[%clk
0:00:56.7]} 36. Re6 {[%clk 0:00:20.2]} 36... Rf7 {[%clk 0:00:56.6]} 37. Rd6
{[%clk 0:00:20.2]} 37... a6 {[%clk 0:00:55.4]} 38. Rxd5 {[%clk 0:00:20.6]} 38...
cxd5 {[%clk 0:00:55.7]} 39. Qxd5 {[%clk 0:00:21.5]} 39... Re7 {[%clk 0:00:55]}
40. Qd6 {[%clk 0:00:20.8]} 40... Rf7 {[%clk 0:00:55.5]} 41. d5 {[%clk
0:00:20.9]} 1-0

[Event "Late-Titled-Tuesday-Blitz-January-16-2024"]
[Site "Chess.com"]
[Date "2024.01.16"]
[Round "3"]
[White "RaugintaBulba"]
[Black "jinxy2009"]
[Result "1-0"]
[WhiteElo "2443"]
[BlackElo "2250"]
[TimeControl "180+1"]
[EndTime "14:26:44 PST"]
[Termination "RaugintaBulba won on time"]

1. d4 {[%clk 0:03:00.9]} 1... d5 {[%clk 0:02:56]} 2. c4 {[%clk 0:03:01.5]} 2...
e6 {[%clk 0:02:55.9]} 3. Nf3 {[%clk 0:03:01.9]} 3... Nf6 {[%clk 0:02:55.2]} 4.
g3 {[%clk 0:03:02.2]} 4... h6 {[%clk 0:02:52.8]} 5. Bg2 {[%clk 0:03:02.6]} 5...
Bd6 {[%clk 0:02:52.9]} 6. O-O {[%clk 0:03:02]} 6... O-O {[%clk 0:02:52.9]} 7.
Nc3 {[%clk 0:03:01.1]} 7... Nc6 {[%clk 0:02:42.3]} 8. e3 {[%clk 0:02:42.4]} 8...
b6 {[%clk 0:01:40.1]} 9. a3 {[%clk 0:02:14.5]} 9... Bb7 {[%clk 0:01:32.7]} 10.
cxd5 {[%clk 0:02:13.3]} 10... exd5 {[%clk 0:01:30.3]} 11. b4 {[%clk 0:02:13.3]}
11... Re8 {[%clk 0:01:28.7]} 12. Qb3 {[%clk 0:02:11.6]} 12... Ne7 {[%clk
0:01:27.9]} 13. Rd1 {[%clk 0:02:09.6]} 13... Qd7 {[%clk 0:01:21.1]} 14. Bb2
{[%clk 0:02:03.1]} 14... Rac8 {[%clk 0:01:02]} 15. Ne5 {[%clk 0:01:57.4]} 15...
Qf5 {[%clk 0:00:46.7]} 16. Nb5 {[%clk 0:01:39.1]} 16... Bxe5 {[%clk 0:00:37.7]}
17. dxe5 {[%clk 0:01:40]} 17... Ne4 {[%clk 0:00:38]} 18. f3 {[%clk 0:01:18.3]}
18... Ng5 {[%clk 0:00:23.6]} 19. f4 {[%clk 0:01:17.7]} 19... Ne4 {[%clk
0:00:23.2]} 20. Nxa7 {[%clk 0:01:15.2]} 20... Rcd8 {[%clk 0:00:20.6]} 21. Nb5
{[%clk 0:01:15]} 21... c5 {[%clk 0:00:18.8]} 22. bxc5 {[%clk 0:00:57.8]} 22...
bxc5 {[%clk 0:00:18.5]} 23. Nc7 {[%clk 0:00:55]} 23... Bc6 {[%clk 0:00:09.4]}
24. Nxe8 {[%clk 0:00:54.7]} 24... Rxe8 {[%clk 0:00:09.8]} 25. a4 {[%clk
0:00:38.8]} 25... d4 {[%clk 0:00:04.8]} 26. exd4 {[%clk 0:00:36.5]} 26... cxd4
{[%clk 0:00:03.9]} 27. Qd3 {[%clk 0:00:33.8]} 27... Nc5 {[%clk 0:00:02.4]} 28.
Qxf5 {[%clk 0:00:33.4]} 1-0

[Event "Late-Titled-Tuesday-Blitz-January-16-2024"]
[Site "Chess.com"]
[Date "2024.01.16"]
[Round "3"]
[White "youngdinousaur"]
[Black "BozeKat"]
[Result "1-0"]
[WhiteElo "2347"]
[BlackElo "2101"]
[TimeControl "180+1"]
[EndTime "14:26:45 PST"]
[Termination "youngdinousaur won on time"]

1. d4 {[%clk 0:02:57]} 1... d5 {[%clk 0:02:59.2]} 2. Nf3 {[%clk 0:02:54.2]} 2...
Nf6 {[%clk 0:02:58.4]} 3. Bf4 {[%clk 0:02:54.5]} 3... c5 {[%clk 0:02:58.4]} 4.
e3 {[%clk 0:02:54.6]} 4... Nc6 {[%clk 0:02:59]} 5. c3 {[%clk 0:02:54.6]} 5...
Qb6 {[%clk 0:02:59.1]} 6. Qc2 {[%clk 0:02:54.5]} 6... Bf5 {[%clk 0:02:58.9]} 7.
dxc5 {[%clk 0:02:54.4]} 7... Bxc2 {[%clk 0:02:54]} 8. cxb6 {[%clk 0:02:54.4]}
8... axb6 {[%clk 0:02:53.9]} 9. Na3 {[%clk 0:02:54.9]} 9... Rxa3 {[%clk
0:02:22.4]} 10. bxa3 {[%clk 0:02:50.9]} 10... e5 {[%clk 0:02:20]} 11. Nxe5
{[%clk 0:02:34.6]} 11... Bxa3 {[%clk 0:02:18.7]} 12. Bb5 {[%clk 0:02:24.4]}
12... Bb2 {[%clk 0:02:00.5]} 13. Nxc6 {[%clk 0:02:23.9]} 13... bxc6 {[%clk
0:01:32.3]} 14. Bxc6+ {[%clk 0:02:24.8]} 14... Ke7 {[%clk 0:01:32.6]} 15. O-O
{[%clk 0:02:24.2]} 15... Bxa1 {[%clk 0:01:28]} 16. Rxa1 {[%clk 0:02:25.1]} 16...
Rc8 {[%clk 0:01:25.5]} 17. Bb5 {[%clk 0:02:24.2]} 17... Rxc3 {[%clk 0:01:21.6]}
18. Be5 {[%clk 0:02:23.7]} 18... Rc5 {[%clk 0:01:19]} 19. a4 {[%clk 0:02:19.5]}
19... g6 {[%clk 0:01:02.6]} 20. Bd4 {[%clk 0:02:19.3]} 20... Rc8 {[%clk
0:00:37.5]} 21. Bxb6 {[%clk 0:02:18.9]} 21... Nd7 {[%clk 0:00:29]} 22. Bd4
{[%clk 0:02:16.9]} 22... Ra8 {[%clk 0:00:26.8]} 23. a5 {[%clk 0:02:15.7]} 23...
Nb8 {[%clk 0:00:09.8]} 24. a6 {[%clk 0:02:11.7]} 24... Nxa6 {[%clk 0:00:10]} 25.
Rxa6 {[%clk 0:02:11.2]} 25... Rb8 {[%clk 0:00:09.4]} 26. Rb6 {[%clk 0:02:08.7]}
26... Ra8 {[%clk 0:00:09.3]} 27. Ba6 {[%clk 0:02:03.6]} 27... Kf8 {[%clk
0:00:04.5]} 28. h4 {[%clk 0:02:00.6]} 28... h5 {[%clk 0:00:04.3]} 29. Rd6 {[%clk
0:01:56.9]} 29... Be4 {[%clk 0:00:04.4]} 30. Bb7 {[%clk 0:01:56]} 30... Rb8
{[%clk 0:00:03.9]} 31. Bxd5 {[%clk 0:01:55.3]} 31... Bf5 {[%clk 0:00:03.2]} 32.
Rb6 {[%clk 0:01:53.2]} 32... Rd8 {[%clk 0:00:03]} 33. e4 {[%clk 0:01:51.6]}
33... Bg4 {[%clk 0:00:02.5]} 34. f3 {[%clk 0:01:51.2]} 34... Bd7 {[%clk
0:00:02.7]} 35. Rb7 {[%clk 0:01:50.9]} 35... g5 {[%clk 0:00:03.3]} 36. hxg5
{[%clk 0:01:50.6]} 36... h4 {[%clk 0:00:04.2]} 37. Kh2 {[%clk 0:01:50.4]} 37...
h3 {[%clk 0:00:05.1]} 38. gxh3 {[%clk 0:01:50.7]} 38... Kg8 {[%clk 0:00:05.1]}
39. h4 {[%clk 0:01:50.8]} 39... Kh7 {[%clk 0:00:05.5]} 40. Kg3 {[%clk
0:01:51.2]} 40... f5 {[%clk 0:00:05.4]} 41. exf5 {[%clk 0:01:50.5]} 41... Rf8
{[%clk 0:00:01.2]} 42. Rxd7+ {[%clk 0:01:16.6]} 1-0

[Event "Late-Titled-Tuesday-Blitz-January-16-2024"]
[Site "Chess.com"]
[Date "2024.01.16"]
[Round "3"]
[White "sergeikim"]
[Black "PawelCzarnota"]
[Result "1/2-1/2"]
[WhiteElo "2573"]
[BlackElo "2802"]
[TimeControl "180+1"]
[EndTime "14:26:48 PST"]
[Termination "Game drawn by repetition"]

1. d4 {[%clk 0:03:00.9]} 1... Nf6 {[%clk 0:02:59.8]} 2. c4 {[%clk 0:03:00.9]}
2... g6 {[%clk 0:03:00.2]} 3. Nc3 {[%clk 0:03:00.8]} 3... Bg7 {[%clk 0:03:00.9]}
4. e4 {[%clk 0:03:00.8]} 4... d6 {[%clk 0:03:01.4]} 5. Nge2 {[%clk 0:02:59.6]}
5... O-O {[%clk 0:03:01.1]} 6. Ng3 {[%clk 0:02:59.6]} 6... e5 {[%clk 0:02:56.9]}
7. d5 {[%clk 0:02:59.7]} 7... a5 {[%clk 0:02:56.3]} 8. Be2 {[%clk 0:02:59.6]}
8... Na6 {[%clk 0:02:55.9]} 9. O-O {[%clk 0:02:59.5]} 9... Nc5 {[%clk
0:02:55.7]} 10. Be3 {[%clk 0:02:59]} 10... b6 {[%clk 0:02:55.8]} 11. h3 {[%clk
0:02:58.4]} 11... Nfd7 {[%clk 0:02:52.6]} 12. Qd2 {[%clk 0:02:58.4]} 12... f5
{[%clk 0:02:52.8]} 13. exf5 {[%clk 0:02:58.6]} 13... gxf5 {[%clk 0:02:52.3]} 14.
f4 {[%clk 0:02:58.7]} 14... exf4 {[%clk 0:02:48.6]} 15. Bxf4 {[%clk 0:02:58.1]}
15... Ne5 {[%clk 0:02:49.2]} 16. Nh5 {[%clk 0:02:54.8]} 16... Rf7 {[%clk
0:02:35.3]} 17. Rae1 {[%clk 0:02:52.5]} 17... Bd7 {[%clk 0:02:32.1]} 18. b3
{[%clk 0:02:51.3]} 18... Qf8 {[%clk 0:02:31]} 19. Nxg7 {[%clk 0:02:43.2]} 19...
Qxg7 {[%clk 0:02:30.8]} 20. Bh5 {[%clk 0:02:29.7]} 20... Ng6 {[%clk 0:02:26.1]}
21. Bh6 {[%clk 0:02:24.5]} 21... Qf6 {[%clk 0:02:25.6]} 22. Bg5 {[%clk
0:02:22.5]} 22... Qg7 {[%clk 0:02:25.8]} 23. Bh6 {[%clk 0:02:21.6]} 23... Qh8
{[%clk 0:02:20.5]} 24. Rf3 {[%clk 0:02:02]} 24... Re8 {[%clk 0:02:19]} 25. Ref1
{[%clk 0:01:52.1]} 25... Ne4 {[%clk 0:02:09.2]} 26. Nxe4 {[%clk 0:01:51.1]}
26... Rxe4 {[%clk 0:02:10.1]} 27. Rg3 {[%clk 0:01:49.1]} 27... Qd4+ {[%clk
0:02:01.9]} 28. Qxd4 {[%clk 0:01:46.7]} 28... Rxd4 {[%clk 0:02:02.8]} 29. Re1
{[%clk 0:01:44.9]} 29... Re4 {[%clk 0:02:01.7]} 30. Rge3 {[%clk 0:01:39.4]}
30... Rfe7 {[%clk 0:01:57.2]} 31. Rxe4 {[%clk 0:01:39]} 31... fxe4 {[%clk
0:01:53.4]} 32. Kf2 {[%clk 0:01:30.8]} 32... Re5 {[%clk 0:01:38.8]} 33. g4
{[%clk 0:01:29]} 33... Nh4 {[%clk 0:01:33.5]} 34. Kg3 {[%clk 0:01:21.7]} 34...
Rxh5 {[%clk 0:01:30.9]} 35. gxh5 {[%clk 0:01:15.5]} 35... Nf5+ {[%clk
0:01:31.4]} 36. Kf4 {[%clk 0:01:14.9]} 36... Nxh6 {[%clk 0:01:32.3]} 37. Rxe4
{[%clk 0:01:13.7]} 37... Kf7 {[%clk 0:01:31]} 38. Kg5 {[%clk 0:01:09.9]} 38...
Ng8 {[%clk 0:01:25]} 39. h6 {[%clk 0:01:06.9]} 39... Bxh3 {[%clk 0:01:15.9]} 40.
Rf4+ {[%clk 0:01:05]} 40... Ke7 {[%clk 0:01:13]} 41. Re4+ {[%clk 0:01:05]} 41...
Kf8 {[%clk 0:00:41.4]} 42. Rf4+ {[%clk 0:01:03.1]} 42... Ke8 {[%clk 0:00:39.3]}
43. Re4+ {[%clk 0:01:02]} 43... Kd8 {[%clk 0:00:38.9]} 44. Rf4 {[%clk
0:01:00.1]} 44... Ke8 {[%clk 0:00:26.3]} 45. Re4+ {[%clk 0:01:00.1]} 45... Kf7
{[%clk 0:00:20.3]} 46. Rf4+ {[%clk 0:00:59.2]} 46... Ke7 {[%clk 0:00:20.2]} 47.
Re4+ {[%clk 0:00:58.8]} 47... Kf7 {[%clk 0:00:20.3]} 1/2-1/2